fUST/lending_fUST_20240819
["ID","MTS","AMOUNT","RATE_DAILY","PERIOD"]
[335281139,1724064703610,-627.32,0.00020821,2]
[335281140,1724064703621,-768.77,0.00020821,2]
[335281141,1724064703633,-1030.7,0.00020821,2]
[335281142,1724064703645,-751.5,0.00020821,2]
[335281143,1724064703656,-669.42,0.00020821,2]
[335281144,1724064703666,-563.42,0.00020821,2]
[335281145,1724064703676,-500.0,0.00020821,2]
[335281146,1724064703686,-563.05,0.00020821,2]
[335281147,1724064703696,-500.0,0.00020821,2]
[335281148,1724064703705,-1159.42,0.00020821,2]
[335281149,1724064703715,-1058.32,0.00020821,2]
[335281150,1724064703729,-500.0,0.00020821,2]
[335281151,1724064703738,-500.0,0.00020821,2]
[335281152,1724064703750,-835.22,0.00020821,2]
[335281153,1724064703766,-1036.0,0.00020821,2]
[335281154,1724064703777,-500.0,0.00020821,2]
[335281155,1724064703789,-1629.15,0.00020821,2]
[335281156,1724064703801,-874.96,0.00020821,2]
[335281157,1724064703811,-714.72,0.00020821,2]
[335281158,1724064703822,-679.46,0.00020821,2]
[335281159,1724064703833,-650.75,0.00020821,2]
[335281160,1724064703844,-2792.23,0.00020821,2]
[335281161,1724064703854,-500.0,0.00020821,2]
[335281162,1724064703864,-1304.87,0.00020821,2]
[335281163,1724064703874,-685.38,0.00020821,2]
[335281164,1724064703886,-999.6,0.00020821,2]
[335281165,1724064703898,-547.37,0.00020821,2]
[335281166,1724064703909,-625.23,0.00020821,2]
[335281167,1724064703919,-500.0,0.00020821,2]
[335281168,1724064703931,-1241.89,0.00020821,2]
[335281169,1724064703942,-545.07,0.00020821,2]
[335281170,1724064703952,-500.0,0.00020821,2]
[335281171,1724064704077,-500.0,0.00020821,2]
[335281172,1724064704088,-1810.25,0.00020821,2]
[335281173,1724064704099,-1703.86,0.00020821,2]
[335281174,1724064704110,-1465.02,0.00020821,2]
[335281175,1724064704120,-548.12,0.00020821,2]
[335281176,1724064704130,-500.0,0.00020821,2]
[335281177,1724064704140,-810.71,0.00020821,2]
[335281178,1724064704150,-2823.37,0.00020821,2]
[335281179,1724064704161,-500.0,0.00020821,2]
[335281180,1724064704170,-500.0,0.00020821,2]
[335281181,1724064704181,-1950.34,0.00020821,2]
[335281182,1724064704191,-766.64,0.00020821,2]
[335281183,1724064704201,-1677.1,0.00020821,2]
[335281184,1724064704211,-611.4,0.00020821,2]
[335281185,1724064704221,-628.62,0.00020821,2]
[335281186,1724064704230,-500.0,0.00020821,2]
[335281187,1724064704240,-531.03,0.00020821,2]
[335281188,1724064704249,-500.0,0.00020821,2]
[335281189,1724064704259,-1530.73,0.00020821,2]
[335281190,1724064704268,-754.52,0.00020821,2]
[335281191,1724064704277,-575.88,0.00020821,2]
[335281192,1724064704287,-955.98,0.00020821,2]
[335281193,1724064704298,-574.44,0.00020821,2]
[335281194,1724064704307,-731.1,0.00020821,2]
[335281195,1724064704317,-6498.62,0.00020821,2]
[335281196,1724064704326,-587.59,0.00020821,2]
[335281197,1724064704335,-6412.2,0.00020821,2]
[335281198,1724064704344,-500.0,0.00020821,2]
[335281199,1724064704354,-500.0,0.00020821,2]
[335281200,1724064704363,-1017.23,0.00020821,2]
[335281201,1724064704373,-274.06192529,0.00020821,2]
[335281202,1724064704383,-1833.35,0.00020821,2]
[335281203,1724064704392,-500.0,0.00020821,2]
[335281204,1724064704402,-866.32,0.00020821,2]
[335281205,1724064704411,-1738.28,0.00020821,2]
[335281206,1724064704422,-552.95,0.00020821,2]
[335281207,1724064704432,-1076.73,0.00020821,2]
[335281208,1724064704443,-591.99,0.00020821,2]
[335281209,1724064704454,-556.23,0.00020821,2]
[335281210,1724064704465,-1070.93,0.00020821,2]
[335281211,1724064704478,-500.0,0.00020821,2]
[335281212,1724064704488,-500.0,0.00020821,2]
[335281213,1724064704497,-500.0,0.00020821,2]
[335281214,1724064704508,-1404.09,0.00020821,2]
[335281215,1724064704518,-527.24,0.00020821,2]
[335281216,1724064704530,-4166.87,0.00020821,2]
[335281217,1724064704542,-549.76,0.00020821,2]
[335281218,1724064704553,-952.17,0.00020821,2]
[335281219,1724064704563,-523.47,0.00020821,2]
[335281220,1724064704574,-19615.05,0.00020821,2]
[335281221,1724064704584,-500.0,0.00020821,2]
[335281222,1724064704593,-967.54,0.00020821,2]
[335281223,1724064704603,-1409.16,0.00020821,2]
[335281224,1724064704613,-5418.3,0.00020821,2]
[335281225,1724064704622,-517.8712523,0.00020821,2]
[335281226,1724064704631,-3020.65,0.00020821,2]
[335281227,1724064704641,-2059.25,0.00020821,2]
[335281228,1724064704651,-6249.43,0.00020821,2]
[335281229,1724064704662,-1358.47,0.00020821,2]
[335281230,1724064704671,-1833.6,0.00020821,2]
[335281231,1724064704681,-695.24,0.00020821,2]
[335281232,1724064704690,-1406.0,0.00020821,2]
[335281233,1724064704699,-521.48,0.00020821,2]
[335281234,1724064704708,-1476.87,0.00020821,2]
[335281235,1724064704718,-1523.28,0.00020821,2]
[335281236,1724064704727,-2266.85,0.00020821,2]
[335281237,1724064704736,-1215.95,0.00020821,2]
[335281238,1724064704746,-734.72,0.00020821,2]
[335281239,1724064704758,-729.24,0.00020821,2]
[335281240,1724064704768,-2145.28,0.00020821,2]
[335281241,1724064704778,-500.0,0.00020821,2]
[335281242,1724064704788,-1474.66,0.00020821,2]
[335281243,1724064704797,-612.11,0.00020821,2]
[335281244,1724064704808,-2313.4,0.00020821,2]
[335281245,1724064704817,-1177.26,0.00020821,2]
[335281246,1724064704826,-573.54,0.00020821,2]
[335281247,1724064704837,-500.0,0.00020821,2]
[335281248,1724064704848,-560.41,0.00020821,2]
[335281249,1724064704858,-2216.78,0.00020821,2]
[335281250,1724064704867,-1514.7,0.00020821,2]
[335281251,1724064704877,-835.68,0.00020821,2]
[335281252,1724064704887,-3105.81,0.00020821,2]
[335281253,1724064704897,-595.88,0.00020821,2]
[335281254,1724064704906,-1084.05,0.00020821,2]
[335281255,1724064704915,-500.0,0.00020821,2]
[335281256,1724064704925,-3685.64,0.00020821,2]
[335281257,1724064704950,-2913.53,0.00020821,2]
[335281258,1724064704967,-597.54,0.00020821,2]
[335281259,1724064704986,-1064.67,0.00020821,2]
[335281260,1724064705008,-1144.09,0.00020821,2]
[335281261,1724064705027,-243.81669625,0.00020856,2]
[335281262,1724064705049,-1900.0,0.00020996,2]
[335281263,1724064705064,-258.47828229,0.00021,2]
[335281264,1724064705082,-10145.2361845,0.00021,2]
[335281265,1724064705102,-232.93849147,0.00021,2]
[335281266,1724064705122,-511.0,0.00021,2]
[335281267,1724064705135,-5710.17383045,0.00021,2]
[335281268,1724064705153,-3000.0,0.00021,2]
[335281269,1724064705169,-3000.0,0.0002101,2]
[335281270,1724064705186,-3000.0,0.0002102,2]
[335281271,1724064705201,-3000.0,0.0002103,2]
[335281272,1724064705217,-3000.0,0.0002104,2]
[335281273,1724064705232,-207.5740843,0.00021041,2]
[335281274,1724064705247,-207.5740843,0.00021041,2]
[335281275,1724064705264,-207.5740843,0.00021041,2]
[335281276,1724064705281,-207.5740843,0.00021041,2]
[335281277,1724064705296,-207.5740843,0.00021041,2]
[335281278,1724064705311,-207.5740843,0.00021041,2]
[335281279,1724064705326,-207.5740843,0.00021041,2]
[335281280,1724064705342,-207.5740843,0.00021041,2]
[335281281,1724064705357,-207.5740843,0.00021041,2]
[335281282,1724064705371,-279.0882344,0.00021041,2]
[335281283,1724064705385,-153.0,0.00021041,2]
[335281284,1724064705400,-153.0,0.00021041,2]
[335281285,1724064705414,-153.0,0.00021041,2]
[335281286,1724064705429,-153.0,0.00021041,2]
[335281287,1724064705446,-3000.0,0.0002105,2]
[335281288,1724064705460,-3000.0,0.0002106,2]
[335281289,1724064705476,-3000.0,0.0002107,2]
[335281290,1724064705493,-3000.0,0.0002108,2]
[335281291,1724064705509,-3000.0,0.0002109,2]
[335281292,1724064705525,-999.1,0.00021095,2]
[335281293,1724064705539,-635.16,0.00021095,2]
[335281294,1724064705556,-591.86,0.00021095,2]
[335281295,1724064705572,-294.1234562,0.00021095,2]
[335281296,1724064705589,-566.51,0.00021095,2]
[335281297,1724064705605,-500.0,0.00021095,2]
[335281298,1724064705621,-159.10364611,0.00021095,2]
[335281299,1724064705653,-500.0,0.00021095,2]
[335281300,1724064705673,-604.56,0.00021095,2]
[335281301,1724064705695,-1036.27,0.00021095,2]
[335281302,1724064705714,-876.01,0.00021095,2]
[335281303,1724064705730,-920.14,0.00021095,2]
[335281304,1724064705749,-500.0,0.00021095,2]
[335281305,1724064705768,-924.92,0.00021095,2]
[335281306,1724064705785,-500.0,0.00021095,2]
[335281307,1724064705801,-884.77,0.00021095,2]
[335281308,1724064705817,-1525.26,0.00021095,2]
[335281309,1724064705834,-1240.07,0.00021095,2]
[335281310,1724064705851,-500.0,0.00021095,2]
[335281311,1724064705867,-531.9,0.00021095,2]
[335281312,1724064705882,-670.44,0.00021095,2]
[335281313,1724064705898,-2085.01,0.00021095,2]
[335281314,1724064705913,-608.01,0.00021095,2]
[335281315,1724064705929,-972.73,0.00021095,2]
[335281316,1724064705944,-627.13,0.00021095,2]
[335281317,1724064705959,-549.6,0.00021095,2]
[335281318,1724064705974,-571.47,0.00021095,2]
[335281319,1724064705988,-355.59044218,0.00021095,2]
[335281320,1724064706003,-509.54,0.00021095,2]
[335281321,1724064706018,-1192.27,0.00021095,2]
[335281322,1724064706033,-833.76,0.00021095,2]
[335281323,1724064706048,-868.49,0.00021095,2]
[335281324,1724064706064,-541.44,0.00021095,2]
[335281325,1724064706078,-680.14,0.00021095,2]
[335281326,1724064706093,-677.35,0.00021095,2]
[335281327,1724064706108,-1037.09,0.00021095,2]
[335281328,1724064706123,-764.95,0.00021095,2]
[335281329,1724064706137,-3205.11,0.00021095,2]
[335281330,1724064706152,-629.33,0.00021095,2]
[335281331,1724064706166,-627.67428863,0.00021095,2]
[335281332,1724064706180,-500.0,0.00021095,2]
[335281333,1724064706195,-618.15,0.00021095,2]
[335281334,1724064706211,-788.89,0.00021095,2]
[335281335,1724064706225,-501.1,0.00021095,2]
[335281336,1724064706243,-945.19,0.00021095,2]
[335281337,1724064706258,-868.42,0.00021095,2]
[335281338,1724064706273,-500.0,0.00021095,2]
[335281339,1724064706287,-924.86,0.00021095,2]
[335281340,1724064706499,-1050.73,0.00021095,2]
[335281341,1724064706510,-673.9,0.00021095,2]
[335281342,1724064706519,-571.61,0.00021095,2]
[335281343,1724064706529,-819.39,0.00021095,2]
[335281344,1724064706539,-513.12,0.00021095,2]
[335281345,1724064706548,-500.0,0.00021095,2]
[335281346,1724064706558,-500.0,0.00021095,2]
[335281347,1724064706568,-1257.31,0.00021095,2]
[335281348,1724064706577,-651.1,0.00021095,2]
[335281349,1724064706587,-800.57,0.00021095,2]
[335281350,1724064706596,-643.17,0.00021095,2]
[335281351,1724064706606,-500.0,0.00021095,2]
[335281352,1724064706617,-500.0,0.00021095,2]
[335281353,1724064706627,-891.67,0.00021095,2]
[335281354,1724064706636,-500.0,0.00021095,2]
[335281355,1724064706646,-734.44,0.00021095,2]
[335281356,1724064706655,-500.0,0.00021095,2]
[335281357,1724064706665,-596.48,0.00021095,2]
[335281358,1724064706675,-991.23,0.00021095,2]
[335281359,1724064706684,-975.86,0.00021095,2]
[335281360,1724064706693,-1381.03,0.00021095,2]
[335281361,1724064706702,-502.85,0.00021095,2]
[335281362,1724064706711,-500.0,0.00021095,2]
[335281363,1724064706721,-530.34,0.00021095,2]
[335281364,1724064706732,-704.69,0.00021095,2]
[335281365,1724064706741,-883.26,0.00021095,2]
[335281366,1724064706750,-652.07,0.00021095,2]
[335281367,1724064706763,-613.05,0.00021095,2]
[335281368,1724064706773,-644.74,0.00021095,2]
[335281369,1724064706784,-500.0,0.00021095,2]
[335281370,1724064706794,-500.0,0.00021095,2]
[335281371,1724064706805,-627.32,0.00021095,2]
[335281372,1724064706816,-768.77,0.00021095,2]
[335281373,1724064706826,-1030.7,0.00021095,2]
[335281374,1724064706839,-751.5,0.00021095,2]
[335281375,1724064706850,-669.42,0.00021095,2]
[335281376,1724064706860,-563.42,0.00021095,2]
[335281377,1724064706871,-500.0,0.00021095,2]
[335281378,1724064706881,-563.05,0.00021095,2]
[335281379,1724064706892,-500.0,0.00021095,2]
[335281380,1724064706903,-1159.42,0.00021095,2]
[335281381,1724064706912,-1058.32,0.00021095,2]
[335281382,1724064706923,-500.0,0.00021095,2]
[335281383,1724064706933,-500.0,0.00021095,2]
[335281384,1724064706942,-835.22,0.00021095,2]
[335281385,1724064706952,-1036.0,0.00021095,2]
[335281386,1724064706961,-500.0,0.00021095,2]
[335281387,1724064706971,-1629.15,0.00021095,2]
[335281388,1724064706981,-874.96,0.00021095,2]
[335281389,1724064706991,-679.46,0.00021095,2]
[335281390,1724064707000,-714.72,0.00021095,2]
[335281391,1724064707010,-650.75,0.00021095,2]
[335281392,1724064707022,-2792.23,0.00021095,2]
[335281393,1724064707031,-200.69860093,0.00021095,2]
[335281394,1724064707041,-1304.87,0.00021095,2]
[335281395,1724064707051,-685.38,0.00021095,2]
[335281396,1724064707060,-999.6,0.00021095,2]
[335281397,1724064707069,-547.37,0.00021095,2]
[335281398,1724064707078,-625.23,0.00021095,2]
[335281399,1724064707087,-500.0,0.00021095,2]
[335281400,1724064707097,-1241.89,0.00021095,2]
[335281401,1724064707107,-545.07,0.00021095,2]
[335281402,1724064707116,-500.0,0.00021095,2]
[335281403,1724064707126,-500.0,0.00021095,2]
[335281404,1724064707135,-1810.25,0.00021095,2]
[335281405,1724064707144,-1703.86,0.00021095,2]
[335281406,1724064707154,-1465.02,0.00021095,2]
[335281407,1724064707163,-548.12,0.00021095,2]
[335281408,1724064707173,-500.0,0.00021095,2]
[335281409,1724064707184,-810.71,0.00021095,2]
[335281410,1724064707194,-2823.37,0.00021095,2]
[335281411,1724064707203,-500.0,0.00021095,2]
[335281412,1724064707213,-500.0,0.00021095,2]
[335281413,1724064707222,-1950.34,0.00021095,2]
[335281414,1724064707232,-766.64,0.00021095,2]
[335281415,1724064707242,-1677.1,0.00021095,2]
[335281416,1724064707251,-611.4,0.00021095,2]
[335281417,1724064707261,-628.62,0.00021095,2]
[335281418,1724064707270,-500.0,0.00021095,2]
[335281419,1724064707279,-531.03,0.00021095,2]
[335281420,1724064707289,-500.0,0.00021095,2]
[335281421,1724064707299,-1530.73,0.00021095,2]
[335281422,1724064707308,-754.52,0.00021095,2]
[335281423,1724064707318,-575.88,0.00021095,2]
[335281424,1724064707327,-955.98,0.00021095,2]
[335281425,1724064707337,-574.44,0.00021095,2]
[335281426,1724064707346,-731.1,0.00021095,2]
[335281427,1724064707358,-6498.62,0.00021095,2]
[335281428,1724064707368,-6412.2,0.00021095,2]
[335281429,1724064707379,-500.0,0.00021095,2]
[335281430,1724064707391,-500.0,0.00021095,2]
[335281431,1724064707402,-1017.23,0.00021095,2]
[335281432,1724064707412,-1833.35,0.00021095,2]
[335281433,1724064707422,-500.0,0.00021095,2]
[335281434,1724064707432,-866.32,0.00021095,2]
[335281435,1724064707441,-1738.28,0.00021095,2]
[335281436,1724064707451,-552.95,0.00021095,2]
[335281437,1724064707461,-1076.73,0.00021095,2]
[335281438,1724064707472,-591.99,0.00021095,2]
[335281439,1724064707482,-556.23,0.00021095,2]
[335281440,1724064707494,-1070.93,0.00021095,2]
[335281441,1724064707504,-500.0,0.00021095,2]
[335281442,1724064707517,-533.59625072,0.00021095,2]
[335281443,1724064707529,-500.0,0.00021095,2]
[335281444,1724064707539,-1404.09,0.00021095,2]
[335281445,1724064707551,-527.24,0.00021095,2]
[335281446,1724064707562,-4166.87,0.00021095,2]
[335281447,1724064707574,-549.76,0.00021095,2]
[335281448,1724064707585,-952.17,0.00021095,2]
[335281449,1724064707596,-523.47,0.00021095,2]
[335281450,1724064707607,-19615.05,0.00021095,2]
[335281451,1724064707618,-435.51910411,0.00021095,2]
[335281452,1724064707629,-967.54,0.00021095,2]
[335281453,1724064707640,-1409.16,0.00021095,2]
[335281454,1724064707652,-5418.3,0.00021095,2]
[335281455,1724064707662,-3020.65,0.00021095,2]
[335281456,1724064707672,-2059.25,0.00021095,2]
[335281457,1724064707692,-6249.43,0.00021095,2]
[335281458,1724064707704,-1358.47,0.00021095,2]
[335281459,1724064707714,-1833.6,0.00021095,2]
[335281460,1724064707725,-695.24,0.00021095,2]
[335281461,1724064707735,-1406.0,0.00021095,2]
[335281462,1724064707745,-521.48,0.00021095,2]
[335281463,1724064707756,-1476.87,0.00021095,2]
[335281464,1724064707768,-1523.28,0.00021095,2]
[335281465,1724064707778,-2266.85,0.00021095,2]
[335281466,1724064707788,-1215.95,0.00021095,2]
[335281467,1724064707799,-734.72,0.00021095,2]
[335281468,1724064707810,-729.24,0.00021095,2]
[335281469,1724064707820,-2145.28,0.00021095,2]
[335281470,1724064707829,-500.0,0.00021095,2]
[335281471,1724064707842,-1474.66,0.00021095,2]
[335281472,1724064707852,-612.11,0.00021095,2]
[335281473,1724064707864,-2313.4,0.00021095,2]
[335281474,1724064707881,-1177.26,0.00021095,2]
[335281475,1724064707891,-573.54,0.00021095,2]
[335281476,1724064707902,-500.0,0.00021095,2]
[335281477,1724064707912,-560.41,0.00021095,2]
[335281478,1724064707922,-2216.78,0.00021095,2]
[335281479,1724064707932,-1514.7,0.00021095,2]
[335281480,1724064707942,-835.68,0.00021095,2]
[335281481,1724064707952,-3105.81,0.00021095,2]
[335281482,1724064707963,-595.88,0.00021095,2]
[335281483,1724064707973,-1084.05,0.00021095,2]
[335281484,1724064707983,-500.0,0.00021095,2]
[335281485,1724064707993,-3685.64,0.00021095,2]
[335281486,1724064708002,-597.54,0.00021095,2]
[335281487,1724064708012,-2913.53,0.00021095,2]
[335281488,1724064708022,-1064.67,0.00021095,2]
[335281489,1724064708032,-1144.09,0.00021095,2]
[335281490,1724064708042,-3000.0,0.000211,2]
[335281491,1724064708051,-3000.0,0.0002111,2]
[335281492,1724064708062,-3000.0,0.0002112,2]
[335281493,1724064708071,-5000.0,0.00021129,2]
[335281494,1724064708082,-3000.0,0.0002113,2]
[335281495,1724064708092,-3000.0,0.0002114,2]
[335281496,1724064708102,-3000.0,0.0002115,2]
[335281497,1724064708115,-3000.0,0.0002116,2]
[335281498,1724064708125,-3000.0,0.0002117,2]
[335281499,1724064708135,-3000.0,0.0002118,2]
[335281500,1724064708145,-1854.4367005,0.00021182,2]
[335281501,1724064708155,-3000.0,0.0002119,2]
[335281502,1724064708164,-5244.78933856,0.00021199,2]
[335281503,1724064708175,-504.25629069,0.000212,2]
[335281504,1724064708186,-472.64980154,0.000212,30]
[335281505,1724064708198,-3000.0,0.000212,2]
[335281506,1724064708208,-3000.0,0.0002121,2]
[335281507,1724064708218,-3000.0,0.0002122,2]
[335281508,1724064708228,-3000.0,0.0002123,2]
[335281509,1724064708239,-3000.0,0.0002124,2]
[335281510,1724064708249,-5000.0,0.00021241,2]
[335281511,1724064708260,-3000.0,0.0002125,2]
[335281512,1724064708270,-3000.0,0.0002126,2]
[335281513,1724064708282,-3000.0,0.0002127,2]
[335281514,1724064708293,-3000.0,0.0002128,2]
[335281515,1724064708303,-3000.0,0.0002129,2]
[335281516,1724064708313,-841.58,0.000213,2]
[335281517,1724064708323,-3000.0,0.000213,2]
[335281518,1724064708333,-3000.0,0.0002131,2]
[335281519,1724064708343,-5000.0,0.00021313,2]
[335281520,1724064708353,-3000.0,0.0002132,2]
[335281521,1724064708366,-3000.0,0.0002133,2]
[335281522,1724064708377,-3000.0,0.0002134,2]
[335281523,1724064708387,-3000.0,0.0002135,2]
[335281524,1724064708398,-3000.0,0.0002136,2]
[335281525,1724064708408,-999.1,0.00021369,2]
[335281526,1724064708417,-635.16,0.00021369,2]
[335281527,1724064708427,-591.86,0.00021369,2]
[335281528,1724064708436,-566.51,0.00021369,2]
[335281529,1724064708590,-428.15161239,0.00021369,2]
[335281530,1724064708600,-500.0,0.00021369,2]
[335281531,1724064708612,-604.56,0.00021369,2]
[335281532,1724064708622,-1036.27,0.00021369,2]
[335281533,1724064708631,-876.01,0.00021369,2]
[335281534,1724064708641,-920.14,0.00021369,2]
[335281535,1724064708651,-500.0,0.00021369,2]
[335281536,1724064708661,-924.92,0.00021369,2]
[335281537,1724064708670,-500.0,0.00021369,2]
[335281538,1724064708680,-884.77,0.00021369,2]
[335281539,1724064708690,-1525.26,0.00021369,2]
[335281540,1724064708700,-1240.07,0.00021369,2]
[335281541,1724064708710,-500.0,0.00021369,2]
[335281542,1724064708721,-531.9,0.00021369,2]
[335281543,1724064708730,-670.44,0.00021369,2]
[335281544,1724064708740,-2085.01,0.00021369,2]
[335281545,1724064708750,-608.01,0.00021369,2]
[335281546,1724064708766,-972.73,0.00021369,2]
[335281547,1724064708776,-627.13,0.00021369,2]
[335281548,1724064708786,-549.6,0.00021369,2]
[335281549,1724064708795,-571.47,0.00021369,2]
[335281550,1724064708807,-509.54,0.00021369,2]
[335281551,1724064708817,-1192.27,0.00021369,2]
[335281552,1724064708828,-833.76,0.00021369,2]
[335281553,1724064708838,-868.49,0.00021369,2]
[335281554,1724064708848,-541.44,0.00021369,2]
[335281555,1724064708859,-680.14,0.00021369,2]
[335281556,1724064708869,-677.35,0.00021369,2]
[335281557,1724064708879,-1037.09,0.00021369,2]
[335281558,1724064708888,-764.95,0.00021369,2]
[335281559,1724064708899,-3205.11,0.00021369,2]
[335281560,1724064708908,-629.33,0.00021369,2]
[335281561,1724064708918,-500.0,0.00021369,2]
[335281562,1724064708927,-618.15,0.00021369,2]
[335281563,1724064708937,-788.89,0.00021369,2]
[335281564,1724064708946,-501.1,0.00021369,2]
[335281565,1724064708956,-945.19,0.00021369,2]
[335281566,1724064708966,-868.42,0.00021369,2]
[335281567,1724064708975,-500.0,0.00021369,2]
[335281568,1724064708985,-924.86,0.00021369,2]
[335281569,1724064708994,-1050.73,0.00021369,2]
[335281570,1724064709004,-673.9,0.00021369,2]
[335281571,1724064709014,-571.61,0.00021369,2]
[335281572,1724064709023,-819.39,0.00021369,2]
[335281573,1724064709035,-513.12,0.00021369,2]
[335281574,1724064709044,-315.10611328,0.00021369,2]
[335281575,1724064709054,-500.0,0.00021369,2]
[335281576,1724064709063,-1257.31,0.00021369,2]
[335281577,1724064709073,-651.1,0.00021369,2]
[335281578,1724064709083,-800.57,0.00021369,2]
[335281579,1724064709092,-643.17,0.00021369,2]
[335281580,1724064709102,-500.0,0.00021369,2]
[335281581,1724064709114,-486.17504527,0.00021369,2]
[335281582,1724064709124,-891.67,0.00021369,2]
[335281583,1724064709134,-370.34386144,0.00021369,2]
[335281584,1724064709144,-734.44,0.00021369,2]
[335281585,1724064709153,-518.24358783,0.00021369,2]
[335281586,1724064709163,-596.48,0.00021369,2]
[335281587,1724064709173,-991.23,0.00021369,2]
[335281588,1724064709182,-975.86,0.00021369,2]
[335281589,1724064709193,-1381.03,0.00021369,2]
[335281590,1724064709202,-502.85,0.00021369,2]
[335281591,1724064709212,-500.0,0.00021369,2]
[335281592,1724064709222,-530.34,0.00021369,2]
[335281593,1724064709232,-883.26,0.00021369,2]
[335281594,1724064709243,-704.69,0.00021369,2]
[335281595,1724064709253,-652.07,0.00021369,2]
[335281596,1724064709262,-613.05,0.00021369,2]
[335281597,1724064709272,-644.74,0.00021369,2]
[335281598,1724064709283,-627.90058964,0.00021369,2]
[335281599,1724064709292,-280.8453343,0.00021369,2]
[335281600,1724064709302,-627.32,0.00021369,2]
[335281601,1724064709312,-768.77,0.00021369,2]
[335281602,1724064709323,-1030.7,0.00021369,2]
[335281603,1724064709333,-751.5,0.00021369,2]
[335281604,1724064709343,-669.42,0.00021369,2]
[335281605,1724064709352,-563.42,0.00021369,2]
[335281606,1724064709365,-500.0,0.00021369,2]
[335281607,1724064709374,-563.05,0.00021369,2]
[335281608,1724064709384,-510.82,0.00021369,2]
[335281609,1724064709393,-1159.42,0.00021369,2]
[335281610,1724064709403,-1058.32,0.00021369,2]
[335281611,1724064709413,-500.0,0.00021369,2]
[335281612,1724064709423,-500.0,0.00021369,2]
[335281613,1724064709433,-835.22,0.00021369,2]
[335281614,1724064709443,-1036.0,0.00021369,2]
[335281615,1724064709453,-500.0,0.00021369,2]
[335281616,1724064709463,-1629.15,0.00021369,2]
[335281617,1724064709473,-874.96,0.00021369,2]
[335281618,1724064709482,-679.46,0.00021369,2]
[335281619,1724064709492,-714.72,0.00021369,2]
[335281620,1724064709503,-650.75,0.00021369,2]
[335281621,1724064709514,-2792.23,0.00021369,2]
[335281622,1724064709525,-1304.87,0.00021369,2]
[335281623,1724064709535,-685.38,0.00021369,2]
[335281624,1724064709546,-999.6,0.00021369,2]
[335281625,1724064709555,-547.37,0.00021369,2]
[335281626,1724064709565,-625.23,0.00021369,2]
[335281627,1724064709575,-500.0,0.00021369,2]
[335281628,1724064709585,-1241.89,0.00021369,2]
[335281629,1724064709594,-545.07,0.00021369,2]
[335281630,1724064709605,-578.06,0.00021369,2]
[335281631,1724064709620,-500.0,0.00021369,2]
[335281632,1724064709631,-1810.25,0.00021369,2]
[335281633,1724064709642,-1703.86,0.00021369,2]
[335281634,1724064709651,-1465.02,0.00021369,2]
[335281635,1724064709661,-548.12,0.00021369,2]
[335281636,1724064709673,-467.926186,0.00021369,2]
[335281637,1724064709683,-810.71,0.00021369,2]
[335281638,1724064709695,-2823.37,0.00021369,2]